Cogmind - Beta 13 @@@ ROGUE MODE // 2024.04.17 @ 03:56:10 Player: GregoriusTechneticies Result: Destroyed by G-47 Trooper with Particle Gun Performance ------------- Evolutions (2) 1000 Regions Visited (4) 800 Robots Destroyed (100) 500 Value Destroyed (1953) 1953 Prototype IDs (3) 60 Alien Tech Used (0) 0 Bonus (243) 243 TOTAL SCORE: 4556 Bonus ------- High Alert Combat Kills 243 Cogmind --------- Core Integrity 0/550 Matter 93/300 Energy 83/100 System Corruption 2% Temperature Cool (9) Movement Core (200) Ox3 Location -8/Materials Parts ------- > --- POWER (1) -------- (None) > --- PROPULSION (2) --- (None) > --- UTILITY (6) ------ Small Storage Unit Machine Analyzer Advanced Visual Processing Unit Improved Sensor Array Improved Signal Interpreter > --- WEAPON (2) ------- Great Maul > --- INVENTORY (8) ---- Melee Analysis Suite Target Analyzer Hacking Suite Hacking Suite Heavy Particle Gun Heavy Hammer Great Maul Peak State ------------ > --- POWER ------------ Light Nuclear Core > --- PROPULSION ------- Wheel Wheel > --- UTILITY ---------- Small Storage Unit Machine Analyzer Advanced Visual Processing Unit Improved Sensor Array Improved Signal Interpreter Utility Shielding > --- WEAPON ----------- Heavy Particle Gun Enhanced Autogun > --- INVENTORY -------- Melee Analysis Suite Target Analyzer Hacking Suite Hacking Suite Great Maul Great Maul Axe [Rating: 29] Favorites ----------- Power Light Deuterium Engine Engine Light Deuterium Engine Power Core Light Nuclear Core Propulsion Wheel Wheel Wheel Utility Small Storage Unit Device Improved Sensor Array Storage Small Storage Unit Processor Improved Signal Interpreter Protection Utility Shielding Weapon Autogun Energy Gun Small Laser Ballistic Gun Autogun Special Weapon Mining Laser Impact Weapon Great Maul Slashing Weapon Axe Build | -11 -10 -9 -9 -8 ------- Run | Yrd Mat Mat Sto Mat Slots Evolved 4 | . . 2 . 2 Power . | . . . . . Propulsion . | . . . . . Utility 4 | . . 2 . 2 Weapon . | . . . . . Parts Attached 91 | 12 . 24 9 46 Power 12 | 1 . 4 . 7 Engine 9 | 1 . 4 . 4 Core 3 | . . . . 3 Reactor . | . . . . . Propulsion 25 | 5 . 7 2 11 Treads . | . . . . . Leg . | . . . . . Wheel 25 | 5 . 7 2 11 Hover . | . . . . . Flight . | . . . . . Utility 22 | 3 . 5 2 12 Device 11 | 2 . 4 1 4 Storage 2 | 1 . . . 1 Processor 8 | . . 1 1 6 Hackware . | . . . . . Protection 1 | . . . . 1 Artifact . | . . . . . Weapon 32 | 3 . 8 5 16 Energy Gun 4 | 1 . . . 3 Energy Cannon . | . . . . . Ballistic Gun 16 | . . 4 3 9 Ballistic Cannon . | . . . . . Launcher . | . . . . . Special Weapon 3 | 2 . 1 . . Impact Weapon 8 | . . 3 2 3 Slashing Weapon 1 | . . . . 1 Piercing Weapon . | . . . . . Special Melee Weapon . | . . . . . Unidentified Prototypes 3 | . . . . 3 Parts Lost 23 | . . 5 1 17 Power 4 | . . 2 . 2 Propulsion 8 | . . 2 . 6 Utility 5 | . . . 1 4 Weapon 6 | . . 1 . 5 Highest Loss Streak 3 | . . 3 1 3 To Critical Strikes . | . . . . . Average Slot Usage (%) 91 | . 100 81 97 91 Engine 7 | . 14 8 11 6 Wheel 15 | . 28 16 22 13 Device 12 | . 14 21 11 10 Storage 9 | . 14 11 11 9 Processor 21 | . . 3 18 26 Protection 4 | . . . . 6 Energy Gun 1 | . 14 . . . Ballistic Gun 14 | . . 13 16 14 Impact Weapon 1 | . . 6 5 . Naked Turns . | . . . . . Heaviest Build 20 | 11 11 19 20 20 Greatest Support 26 | 20 20 22 20 26 Greatest Overweight (x) 5 | 3 . 5 . 4 Average Overweight (x) . | . . . . . Largest Inventory Capacity 8 | 8 8 8 8 8 Average Capacity 7 | 7 8 8 8 8 Most Carried 8 | 8 8 8 8 8 Average Carried 7 | 6 8 7 7 7 Final Capacity 8 | 8 8 8 8 8 Final Carried 8 | 8 8 7 8 7 Class Distribution -------------------- 38% | Scavenger-Skirmisher 23% | Scavenger-Mutant 16% | Mutant 14% | Scavenger-Assassin 7% | Skirmisher Dominant Class ---------------- Scavenger-Mutant | -10/Materials Mutant | -9/Materials Scavenger-Skirmisher | -9/Storage Scavenger-Skirmisher | -8/Materials Resources | -11 -10 -9 -9 -8 ----------- Run | Yrd Mat Mat Sto Mat Matter Collected 2480 | 320 . 237 341 1582 Remotely . | . . . . . Salvage Created 3447 | 235 . 423 545 2244 Parts 191 | 25 . 20 24 122 Haulers Intercepted 11 | . . 1 5 5 Recyclers Shooed 2 | . . . 1 1 Parts Field Recycled . | . . . . . Retrieved Matter . | . . . . . Parts Self-Destructed . | . . . . . Prevented . | . . . . . Kills | -11 -10 -9 -9 -8 ------- Run | Yrd Mat Mat Sto Mat Combat Hostiles Destroyed 40 | . . 7 5 28 Melee 2 | . . . . 2 Guns 33 | . . 5 2 26 Classes Destroyed 13 | 3 . 6 2 2 Worker 14 | 3 . . 3 8 Builder 10 | . . 2 . 8 Tunneler 10 | 9 . . . 1 Hauler 11 | . . 1 5 5 Recycler 6 | 1 . 2 . 3 Mechanic 1 | . . . 1 . Operator 2 | . . . 1 1 Watcher 6 | . . 1 1 4 Swarmer 7 | . . 3 . 4 Grunt 23 | . . 3 5 15 Brawler 2 | . . . . 2 Duelist 1 | . . . . 1 Sentry 7 | . . 1 . 6 Best Kill Streak 9 | 3 . 4 5 9 Combat Bots Only 9 | . . 4 2 9 Max Kills in Single Turn 2 | 1 . 2 1 1 Gunslinging . | . . . . . Exploded . | . . . . . Melee 1 | . . . . 1 Uniques/NPCs Destroyed . | . . . . . Combat | -11 -10 -9 -9 -8 -------- Run | Yrd Mat Mat Sto Mat Hostile Shots Fired 268 | . . 66 25 177 Missed 63 | . . 19 5 39 Damage Taken 2999 | . . 657 218 2124 Core 791 | . . 155 77 559 Absorbed by Shields . | . . . . . Redirected to Shielding 51 | . . . . 51 Core Remaining (%) 80 | 100 100 . 42 . Volleys Fired 342 | 49 2 48 28 215 Largest 2 | 2 2 2 2 2 Hottest 140 | 140 140 100 46 80 Shots Fired 543 | 58 3 54 56 372 Gun 532 | 49 2 53 56 372 Cannon . | . . . . . Launcher . | . . . . . Special 11 | 9 1 1 . . Kinetic 455 | . . 53 56 346 Thermal 88 | 58 3 1 . 26 Explosive . | . . . . . Electromagnetic . | . . . . . Robot Hit Streak 23 | 11 2 4 12 23 Robot Miss Streak 10 | 4 . 10 4 6 Penetration Max . | . . . . . Secondary Targets 1 | . . . . 1 Max Gunslinging Chain 1 | . . . . 1 Shots Hit Robots 349 | 35 1 32 42 239 Core Hits 130 | 13 . 14 13 90 Critical Kills 2 | . . . . 2 Critical Parts Destroyed 8 | . . 2 4 2 Critical Strikes 12 | . . 2 4 6 Burn 2 | . . . . 2 Destroy 3 | . . 1 . 2 Smash 7 | . . 1 4 2 Melee Attacks 54 | . . 7 19 28 Impact 32 | . . 7 19 6 Slashing 22 | . . . . 22 Piercing . | . . . . . Sneak Attacks 5 | . . . 3 2 Combat Hostiles . | . . . . . Follow-up Attacks 2 | . . . 1 1 Damage Inflicted 6531 | 463 12 779 1207 4070 Guns 4955 | 343 12 379 439 3782 Cannons . | . . . . . Explosions 195 | . . 195 . . Melee 1261 | . . 205 768 288 Ramming . | . . . . . Kinetic 4315 | . . 379 439 3497 Thermal 760 | 463 12 . . 285 Explosive 195 | . . 195 . . Electromagnetic . | . . . . . Impact 1261 | . . 205 768 288 Slashing . | . . . . . Piercing . | . . . . . Highest Corruption 2 | . . . . 2 Average Corruption 1 | . . . . 1 Corruption Purged . | . . . . . Corruption Blocked . | . . . . . Effects 4 | . . . . 4 Message Errors 1 | . . . . 1 Matter Fused 1 | . . . . 1 Alerts 1 | . . . . 1 Weapon Failures 1 | . . . . 1 Overload Shots . | . . . . . Overflow Damage 497 | . . 48 322 127 Projectiles . | . . . . . Explosions . | . . . . . Melee 497 | . . 48 322 127 Knockbacks 5 | . . 3 1 1 Impact 5 | . . 3 1 1 Kinetic . | . . . . . Secondary . | . . . . . Self-Inflicted Damage 133 | . . 133 . . Shots 2 | . . 2 . . Rammed . | . . . . . Targets Rammed . | . . . . . Kicked . | . . . . . Crushed . | . . . . . Highest Temperature 412 | 60 40 10 16 412 Average Temperature 46 | 28 23 6 2 71 Received Heat Transfer 1335 | . . 234 120 981 Siege Activations . | . . . . . Robots Corrupted . | . . . . . Combat Hostiles . | . . . . . Parts Fried 12 | . . 4 3 5 Impact Corruptions 13 | . . 2 7 4 Robots Melted . | . . . . . Combat Hostiles . | . . . . . Parts Melted 5 | 2 . . . 3 Heat Transferred 1753 | 1025 25 . . 703 Parts Sabotaged . | . . . . . Parts Stolen . | . . . . . Parts Stripped . | . . . . . Power Chain Reactions . | . . . . . Alert | -11 -10 -9 -9 -8 ------- Run | Yrd Mat Mat Sto Mat Peak Influence 733 | 65 64 339 474 733 Initial 200 | . 42 26 143 200 Average 365 | 36 58 210 336 492 Maximum Alert Level 3 | . . 1 2 3 Low Security (%) 21 | 100 100 36 11 . Level 1 27 | . . 63 71 17 Level 2 48 | . . . 16 78 Level 3 1 | . . . . 3 Level 4 . | . . . . . Level 5 . | . . . . . High Security . | . . . . . Max Security . | . . . . . Squads Dispatched 7 | . . . 2 5 Investigation 2 | . . . . 2 Extermination . | . . . . . Reinforcement 5 | . . . 2 3 Assault . | . . . . . Garrison . | . . . . . Intercept . | . . . . . Searches Triggered . | . . . . . Construction Impeded . | . . . . . Haulers Reinforced . | . . . . . Active Scanning Responses . | . . . . . Cargo Convoy Interrupts . | . . . . . Stealth | -11 -10 -9 -9 -8 --------- Run | Yrd Mat Mat Sto Mat Distress Signals 4 | . . 3 . 1 Communications Jammed . | . . . . . Distress Signals . | . . . . . Times Spotted 83 | . 1 14 14 54 Peak Tracking Total 8 | . 1 6 3 8 Tactical Retreats 4 | . . . 4 . Traps | -11 -10 -9 -9 -8 ------- Run | Yrd Mat Mat Sto Mat Traps Triggered 1 | . . . 1 . Indirectly . | . . . . . Trap Hack Attempts . | . . . . . Triggered . | . . . . . Disarmed . | . . . . . Reprogrammed . | . . . . . Reused . | . . . . . Traps Extracted . | . . . . . Installed . | . . . . . Triggered 1 | . . . 1 . Machines | -11 -10 -9 -9 -8 ---------- Run | Yrd Mat Mat Sto Mat Machines Disabled 9 | . . 2 1 6 Max in Single Turn 2 | . . 2 1 1 Garrison Access 1 | . . . . 1 Machines Repaired . | . . . . . Machines Dismantled . | . . . . . Machines Sabotaged . | . . . . . Overloaded Fab Kills . | . . . . . Hacking | -11 -10 -9 -9 -8 --------- Run | Yrd Mat Mat Sto Mat Machines Accessed 12 | . 1 2 3 6 Terminals 11 | . 1 2 3 5 Fabricators . | . . . . . Repair Stations . | . . . . . Recycling Units . | . . . . . Scanalyzers . | . . . . . Garrison Access 1 | . . . . 1 Total Hacks 34 | . 3 7 5 19 Successful 13 | . 2 3 3 5 Failed 21 | . 1 4 2 14 Catastrophic 5 | . . . 1 4 Database Lockouts . | . . . . . Manual 26 | . 3 5 . 18 Terminals 33 | . 3 7 5 18 Fabricators . | . . . . . Repair Stations . | . . . . . Recycling Units . | . . . . . Scanalyzers . | . . . . . Garrison Access 1 | . . . . 1 Terminal Hacks 7 | . 1 2 3 1 Record 1 | . . . 1 . Robot Analysis 1 | . . 1 . . Open Door 2 | . . . 2 . Terminal Index 3 | . 1 1 . 1 Fabricator Hacks . | . . . . . Repair Station Hacks . | . . . . . Recycling Unit Hacks . | . . . . . Scanalyzer . | . . . . . Garrison Access Hacks 1 | . . . . 1 Seal Access 1 | . . . . 1 Unauthorized Hacks 5 | . 1 1 . 3 Terminals 5 | . 1 1 . 3 Botnet 5 | . 1 1 . 3 Fabricators . | . . . . . Repair Stations . | . . . . . Recycling Units . | . . . . . Scanalyzers . | . . . . . Garrison Access . | . . . . . Data Cores Recovered . | . . . . . Used . | . . . . . Hacking Detections 9 | . 1 2 1 5 Full Trace Events 2 | . . . . 2 Feedback Events 1 | . . . . 1 Corruption 1 | . . . . 1 Feedback Blocked . | . . . . . Robot Schematics Acquired . | . . . . . Robots Built . | . . . . . Authchips . | . . . . . Time . | . . . . . Total Robot Build Rating . | . . . . . Part Schematics Acquired . | . . . . . Parts Built . | . . . . . Authchips . | . . . . . Time . | . . . . . Total Part Build Rating . | . . . . . Parts Repaired . | . . . . . Time . | . . . . . Parts Recycled . | . . . . . Recycled Matter . | . . . . . Retrieved Matter . | . . . . . Retrieved Components . | . . . . . Parts Scanalyzed . | . . . . . Part Schematics Acquired . | . . . . . Parts Damaged . | . . . . . Bothacking | -11 -10 -9 -9 -8 ------------ Run | Yrd Mat Mat Sto Mat Used RIF Installer . | . . . . . Robots Hacked . | . . . . . Non-combat . | . . . . . Combat . | . . . . . Robot Hacks Applied . | . . . . . Relay Couplers Released . | . . . . . Fabnet Peak Effective % . | . . . . . Robots Rewired . | . . . . . Allies Hacked . | . . . . . Hacks Repelled . | . . . . . Allies | -11 -10 -9 -9 -8 -------- Run | Yrd Mat Mat Sto Mat Total Allies . | . . . . . Largest Group . | . . . . . Highest-Rated Group . | . . . . . Highest-Rated Ally . | . . . . . Total Orders . | . . . . . Ally Attacks . | . . . . . Total Damage . | . . . . . Kills . | . . . . . Allies Corrupted . | . . . . . Allies Melted . | . . . . . Intel | -11 -10 -9 -9 -8 ------- Run | Yrd Mat Mat Sto Mat Robot Analysis Total 1 | . . 1 . . Derelict Logs Recovered . | . . . . . Drone Launches . | . . . . . Drone Recoveries . | . . . . . Exploration | -11 -10 -9 -9 -8 ------------- Run | Yrd Mat Mat Sto Mat Turns Passed 2986 | 382 88 380 385 1751 Spaces Moved 1884 | 229 102 230 263 1060 Core 155 | 49 . 9 . 97 Treads . | . . . . . Legs . | . . . . . Wheels 1729 | 180 102 221 263 963 Hover . | . . . . . Flight . | . . . . . Fastest Speed 50 | 50 80 80 80 80 Average Speed 92 | 100 80 89 80 96 Slowest Speed 300 | 200 80 300 80 250 Overloaded Moves . | . . . . . Propulsion Burnouts . | . . . . . Robots Hopped . | . . . . . Cave-ins Triggered . | . . . . . Exploration Rate (%) 32 | 7 22 23 48 62 Regions Visited 4 Branch Regions 1 Pre-discovered Areas . | . . . . . Known Exits Taken 2 | . . 1 1 . Unknown Exits Taken 2 | 1 1 . . . Scrap Searched . | . . . . . Spaces Dug 24 | . 1 1 . 22 Terrain Destroyed 64 | 1 1 40 . 22 Melee 22 | . . . . 22 Projectile 3 | 1 1 1 . . AOE 39 | . . 39 . . Terrain Rammed . | . . . . . Walls Destroyed . | . . . . . Machines Disabled . | . . . . . Actions | -11 -10 -9 -9 -8 --------- Run | Yrd Mat Mat Sto Mat Total 2555 | 306 103 343 357 1446 Wait 74 | . . 4 20 50 Move 1880 | 228 101 229 262 1060 Hop . | . . . . . Pick Up 47 | 10 . 13 5 19 Fast Attach 25 | 7 . 5 2 11 Attach 14 | . . 5 . 9 Detach 1 | . . . . 1 Swap 52 | 5 . 14 7 26 Drop 60 | 7 . 18 7 28 Fire 342 | 49 2 48 28 215 Melee 52 | . . 7 18 27 Ram . | . . . . . Kick . | . . . . . Crush . | . . . . . Escape Stasis 8 | . . . 8 . Rewire . | . . . . . Trap . | . . . . . Miscellaneous . | . . . . . Route ------- -11/Scrapyard -10/Materials -9/Materials (discovered 2 exits: [*Min] / *Sto) -9/Storage -8/Materials History --------- Turn | Location | Event 13 | -11/Scrapyard | Discovered new exit (range 15) 383 | -11/Scrapyard | Entered Materials 384 | -10/Materials | Build established: Scavenger-Mutant 455 | -10/Materials | Discovered new exit (range 8) 471 | -10/Materials | Entered another Materials area 471 | -9/Materials | Evolved 2 slots: Utility x2 647 | -9/Materials | Lost 3 parts (1p1n1w) 786 | -9/Materials | Discovered new exit (range 16) 796 | -9/Materials | Discovered new exit (range 7) 850 | -9/Materials | Identified exit to Storage 851 | -9/Materials | Entered Storage 910 | -9/Storage | Core integrity fell below 50% 1200 | -9/Storage | Discovered new exit (range 17) 1236 | -9/Storage | Identified exit to Materials 1236 | -9/Storage | Entered Materials 1236 | -8/Materials | Evolved 2 slots: Utility x2 1277 | -8/Materials | Build established: Scavenger-Skirmisher 1510 | -8/Materials | Destroyed 9 combat bots 1742 | -8/Materials | Lost 3 parts (1n1u1w) 2425 | -8/Materials | Lost 3 parts (1u2w) 2574 | -8/Materials | Core integrity fell below 50% 2751 | -8/Materials | Core integrity fell below 20% 2987 | -8/Materials | Destroyed by G-47 Trooper with Particle Gun Last Messages --------------- 02847_ ALERT: Hostiles spotted, dispatching reinforcements to Terminal M004. 02857_ T-07 Excavator is excavating. 02860_ >> Machine Analyzer network decryption results: 02860_ Terminal x2 02880_ Acquired Imp. Sensor Array. 02943_ T-07 Excavator is excavating. 02962_ >> Machine Analyzer network decryption results: 02962_ Terminal x2 02967_ Connecting with Terminal... Feedback: System corruption (+1%). 02967_ ALERT: Suspicious activity at Terminal M007. Dispatching Investigation squad. 02972_ Terminal disabled. 02976_ G-47 Trooper destroyed. 02981_ Enh. Autogun destroyed. 02983_ Utility Shielding destroyed. 02985_ Enh. Autogun destroyed. Map ----- +----------------------------------------------------+ | | | | | | | | | | | | | ????????????????????????????????? | | ????????????????????????????????? | | ????????????????????????????????? | | ??????????????"T"???????????????? | | ????????????????????????????????? | | ????????????????????????????#???? | | ???????????????????????????? ???? | | ???????????????????##??????? ???? | | ??????????????????# ??????# #??? | | ??????????????????# ????u?# #??? | | ?????????????????? ?u?t??# #??? | | ?????????????????? ???u??# #??? | | ?????????T???"""??# #??????# #??? | | ?????????????"""??# #??????# #??? | | ?????????????"""??# #??????# #??? | | ??????????????????# ######## #??? | | ??????????????????# #??? | | ??????????????????# ######## #??? | | ??????????????????# #^g ## #??? | | ??????????????????# # "" @## #??? | | ??????????????????# # "T"g## #??? | | ??????????????????# # !=## #??? | | ?????????#####????# ###+#### #??? | | ?????????# ????# ###+#### | | ?????????# ????# + # | | ?????????? ????# ## ] !# | | ?????????? ????# ## # | | ??????????? ?#### ## """ # | | ???????????# #?# ## """ # | | ???????????# ### # """ # | | ???????????# / # | | ???????????# # !# | | ???????????# #[ # | | ???????????# ############ # # | | ???????????# #??????????# # "T" # | | ???????????#+######?????# # """ # | | ???????????# #?????# ####### | | ???????????# ####### #?????? | | ???????????# + #?????? | | ???????????# # #?????? | | ???????????# # #?????? | | ???????#???# + #?????? | | ?????? #???############## #?????? | | ??####+#####????????????# #?????? | +----------------------------------------------------+ Best States ------------- Heat Dissipation 31 Energy Generation 14 Energy Capacity 265 Matter Stores 300 Matter Capacity 300 Sight Range 20 Robot Scan Range 15 Terrain Scan Density 10 ECM Strength 1 Utility Shielding 33 Evasion (%) 44 Item Schematics ----------------- None Robot Schematics ------------------ None Fabricated ------------ Nothing Alien Tech Used ----------------- None Achievements -------------- None Challenges ------------ None Game ------ Seed MetafieldNavigationThruster Manual? 0 Play Time 00:45:38 Cumulative 35.2 hours Start 2024.04.17 @ 03:09:42 End 2024.04.17 @ 03:56:10 Sessions 1 Manual Loads 0 Difficulty Rogue Special Mode None Game No. 47 Rogue 32 Adventurer 0 Explorer 15 Win Type - Total 0 Types 0/0/0/0/0/0/0/0/0 Lore% 20 Gallery% 31 Achievement% 22 Wizard Run 0 Options --------- Layout 1 ASCII 0 Keyboard 0 Movement Mouse Keybinds 0 Fullscreen 1 Font 24/Smallcaps Map View 50x35 Zoom Use 0% Tactical HUD 1 Map Filters NONE Filters NONE Steam 1 RUN: e4796259-565d-4355-a929-dc38a62d1517